[Event "*** Titled Tuesday Blitz"]
[Site "Chess.com"]
[Date "2021.03.09"]
[Round "3"]
[White "WPWPWP-2015"]
[Black "chessprincesa1"]
[Result "1-0"]
[WhiteElo "2503"]
[BlackElo "2248"]
[TimeControl "180+1"]
[EndTime "10:30:06 PST"]
[Termination "WPWPWP-2015 won on time"]

1. e4 {[%clk 0:01:13.7]} 1... e5 {[%clk 0:02:55.5]} 2. Nf3 {[%clk 0:01:11.1]}
2... Nc6 {[%clk 0:02:54.8]} 3. Bc4 {[%clk 0:01:10.5]} 3... Bc5 {[%clk
0:02:48.4]} 4. O-O {[%clk 0:01:09.9]} 4... Nf6 {[%clk 0:02:48.1]} 5. d3 {[%clk
0:01:10]} 5... O-O {[%clk 0:02:47.3]} 6. h3 {[%clk 0:01:09.2]} 6... h6 {[%clk
0:02:45.6]} 7. Re1 {[%clk 0:01:08]} 7... d6 {[%clk 0:02:45.9]} 8. c3 {[%clk
0:01:07.3]} 8... a6 {[%clk 0:02:45.7]} 9. a4 {[%clk 0:01:06.8]} 9... Rb8 {[%clk
0:02:40]} 10. Na3 {[%clk 0:01:04.9]} 10... Be6 {[%clk 0:02:37.6]} 11. b4 {[%clk
0:00:58.2]} 11... Ba7 {[%clk 0:02:33.1]} 12. Bxe6 {[%clk 0:00:57.2]} 12... fxe6
{[%clk 0:02:32.3]} 13. Qb3 {[%clk 0:00:56.7]} 13... Qe8 {[%clk 0:02:28.4]} 14.
Nc2 {[%clk 0:00:55.2]} 14... Nh5 {[%clk 0:02:21.1]} 15. d4 {[%clk 0:00:37]}
15... exd4 {[%clk 0:02:01.7]} 16. cxd4 {[%clk 0:00:36.1]} 16... Kh8 {[%clk
0:01:55.5]} 17. Qc3 {[%clk 0:00:34.2]} 17... e5 {[%clk 0:01:51]} 18. Be3 {[%clk
0:00:27.4]} 18... exd4 {[%clk 0:01:38.8]} 19. Ncxd4 {[%clk 0:00:25]} 19... Nxd4
{[%clk 0:01:27.8]} 20. Bxd4 {[%clk 0:00:23.6]} 20... Bxd4 {[%clk 0:01:25.4]} 21.
Nxd4 {[%clk 0:00:21.3]} 21... Nf4 {[%clk 0:01:23.3]} 22. Nf5 {[%clk 0:00:19.9]}
22... Qg6 {[%clk 0:01:10.8]} 23. Qg3 {[%clk 0:00:18.7]} 23... Qxg3 {[%clk
0:01:05.7]} 24. Nxg3 {[%clk 0:00:18.3]} 24... Nd3 {[%clk 0:01:04.4]} 25. Re3
{[%clk 0:00:15.8]} 25... Nxb4 {[%clk 0:01:03.1]} 26. Rc1 {[%clk 0:00:15.8]}
26... Nc6 {[%clk 0:01:00.9]} 27. Nf5 {[%clk 0:00:15.5]} 27... Kh7 {[%clk
0:00:58.9]} 28. f3 {[%clk 0:00:14.9]} 28... g6 {[%clk 0:00:58.7]} 29. Ng3 {[%clk
0:00:14.3]} 29... Rfe8 {[%clk 0:00:57.5]} 30. Rec3 {[%clk 0:00:14.2]} 30... Re5
{[%clk 0:00:56.8]} 31. Nf1 {[%clk 0:00:14.1]} 31... Ra5 {[%clk 0:00:55.8]} 32.
Rc4 {[%clk 0:00:13.4]} 32... Rc8 {[%clk 0:00:53.7]} 33. Ne3 {[%clk 0:00:13.3]}
33... Kg7 {[%clk 0:00:52.9]} 34. Nd5 {[%clk 0:00:12.9]} 34... Kf7 {[%clk
0:00:52.3]} 35. Kf2 {[%clk 0:00:12.9]} 35... g5 {[%clk 0:00:48.7]} 36. g3 {[%clk
0:00:12.2]} 36... Ke6 {[%clk 0:00:45.4]} 37. f4 {[%clk 0:00:12.4]} 37... gxf4
{[%clk 0:00:35.2]} 38. gxf4 {[%clk 0:00:13.3]} 38... Kd7 {[%clk 0:00:26.9]} 39.
Rg1 {[%clk 0:00:12.7]} 39... Ke6 {[%clk 0:00:18.2]} 40. Rg6+ {[%clk 0:00:12.1]}
40... Kf7 {[%clk 0:00:17.1]} 41. Rxh6 {[%clk 0:00:12.2]} 41... Kg7 {[%clk
0:00:15.9]} 42. Rh5 {[%clk 0:00:11.1]} 42... Kf7 {[%clk 0:00:12.8]} 43. Rh7+
{[%clk 0:00:10.3]} 43... Kg6 {[%clk 0:00:11.9]} 44. Rxc7 {[%clk 0:00:09.8]}
44... Rxc7 {[%clk 0:00:10.8]} 45. Nxc7 {[%clk 0:00:10.7]} 45... Rc5 {[%clk
0:00:07.2]} 46. Rxc5 {[%clk 0:00:09.3]} 46... dxc5 {[%clk 0:00:08.1]} 47. Ke3
{[%clk 0:00:09]} 47... Nd4 {[%clk 0:00:06.9]} 48. Kd3 {[%clk 0:00:08.1]} 48...
b5 {[%clk 0:00:04.8]} 49. Nxa6 {[%clk 0:00:07.3]} 49... bxa4 {[%clk 0:00:03.1]}
50. Nxc5 {[%clk 0:00:07.4]} 50... Nb5 {[%clk 0:00:02.6]} 51. Nxa4 {[%clk
0:00:07]} 51... Nd6 {[%clk 0:00:02.4]} 52. Nc3 {[%clk 0:00:06.9]} 1-0

[Event "*** Titled Tuesday Blitz"]
[Site "Chess.com"]
[Date "2021.03.09"]
[Round "3"]
[White "Mihnea2017"]
[Black "sergoy"]
[Result "1-0"]
[WhiteElo "2480"]
[BlackElo "2814"]
[TimeControl "180+1"]
[EndTime "10:30:11 PST"]
[Termination "Mihnea2017 won by resignation"]

1. e4 {[%clk 0:03:00.9]} 1... c5 {[%clk 0:03:00.1]} 2. Nf3 {[%clk 0:02:59.8]}
2... d6 {[%clk 0:03:00.8]} 3. d4 {[%clk 0:02:59.1]} 3... cxd4 {[%clk 0:03:01.7]}
4. Nxd4 {[%clk 0:02:58.7]} 4... Nf6 {[%clk 0:03:02.3]} 5. Nc3 {[%clk 0:02:58.6]}
5... a6 {[%clk 0:03:02.5]} 6. Be3 {[%clk 0:02:58.2]} 6... e5 {[%clk 0:03:02.4]}
7. Nb3 {[%clk 0:02:57.7]} 7... Be6 {[%clk 0:03:02.4]} 8. f3 {[%clk 0:02:56.9]}
8... Be7 {[%clk 0:03:02.7]} 9. Qd2 {[%clk 0:02:56.4]} 9... Nbd7 {[%clk
0:03:03.2]} 10. O-O-O {[%clk 0:02:52.6]} 10... O-O {[%clk 0:03:02.7]} 11. g4
{[%clk 0:02:52.5]} 11... b5 {[%clk 0:03:02.5]} 12. g5 {[%clk 0:02:51.8]} 12...
Nh5 {[%clk 0:03:02.4]} 13. Nd5 {[%clk 0:02:42.5]} 13... Bxd5 {[%clk 0:03:02.2]}
14. exd5 {[%clk 0:02:43.4]} 14... f6 {[%clk 0:03:02.2]} 15. gxf6 {[%clk
0:02:29.2]} 15... Bxf6 {[%clk 0:03:03.1]} 16. Bd3 {[%clk 0:02:25.7]} 16... Nf4
{[%clk 0:03:01.9]} 17. Kb1 {[%clk 0:02:19.4]} 17... Nxd3 {[%clk 0:02:38]} 18.
Qxd3 {[%clk 0:02:18.3]} 18... Bg5 {[%clk 0:02:38.4]} 19. h4 {[%clk 0:01:52]}
19... Bxe3 {[%clk 0:02:29.2]} 20. Qxe3 {[%clk 0:01:52.9]} 20... a5 {[%clk
0:02:29.6]} 21. Nd2 {[%clk 0:01:49.3]} 21... a4 {[%clk 0:02:29.4]} 22. a3 {[%clk
0:01:45.3]} 22... Nc5 {[%clk 0:02:26.3]} 23. Ne4 {[%clk 0:01:44.3]} 23... Nxe4
{[%clk 0:02:25.7]} 24. fxe4 {[%clk 0:01:43.1]} 24... Rb8 {[%clk 0:02:25.3]} 25.
c3 {[%clk 0:01:41.7]} 25... Rf4 {[%clk 0:02:23.4]} 26. h5 {[%clk 0:01:39.7]}
26... Qf6 {[%clk 0:02:23]} 27. Rh2 {[%clk 0:01:22.4]} 27... Qg5 {[%clk
0:02:16.2]} 28. Qe2 {[%clk 0:01:19.9]} 28... Qg4 {[%clk 0:02:09.9]} 29. Re1
{[%clk 0:00:58.6]} 29... Qxe2 {[%clk 0:02:08.4]} 30. Rexe2 {[%clk 0:00:58.9]}
30... Rbf8 {[%clk 0:02:05.5]} 31. Kc2 {[%clk 0:00:58.9]} 31... Rg4 {[%clk
0:02:01.2]} 32. Kd3 {[%clk 0:00:54.2]} 32... Rff4 {[%clk 0:01:53.6]} 33. Re3
{[%clk 0:00:41.7]} 33... Kf7 {[%clk 0:01:44.4]} 34. Rhe2 {[%clk 0:00:27.1]}
34... Rg5 {[%clk 0:01:33.1]} 35. h6 {[%clk 0:00:23.5]} 35... gxh6 {[%clk
0:01:25.6]} 36. c4 {[%clk 0:00:23.4]} 36... bxc4+ {[%clk 0:01:26.4]} 37. Kxc4
{[%clk 0:00:24.3]} 37... h5 {[%clk 0:01:27.1]} 38. Kb4 {[%clk 0:00:22.5]} 38...
h4 {[%clk 0:01:27.4]} 39. Kxa4 {[%clk 0:00:22.1]} 39... Rg3 {[%clk 0:01:27.7]}
40. Kb5 {[%clk 0:00:20.5]} 40... Rff3 {[%clk 0:01:06.4]} 41. Rxf3+ {[%clk
0:00:14.9]} 41... Rxf3 {[%clk 0:01:07.3]} 42. Kb4 {[%clk 0:00:14.6]} 42... h3
{[%clk 0:01:04.3]} 43. a4 {[%clk 0:00:14.7]} 43... Rg3 {[%clk 0:01:03.4]} 44. b3
{[%clk 0:00:13.3]} 44... Ke7 {[%clk 0:00:42.5]} 45. a5 {[%clk 0:00:12.5]} 45...
Kd7 {[%clk 0:00:42.8]} 46. Rc2 {[%clk 0:00:11.3]} 46... Rg8 {[%clk 0:00:34.1]}
47. Rc3 {[%clk 0:00:10.9]} 47... Rg4 {[%clk 0:00:15.4]} 48. Rxh3 {[%clk
0:00:09.7]} 48... Rxe4+ {[%clk 0:00:15]} 49. Kb5 {[%clk 0:00:10.1]} 49... Kc7
{[%clk 0:00:12]} 50. Rxh7+ {[%clk 0:00:10.3]} 50... Kb8 {[%clk 0:00:12.3]} 51.
Kc6 {[%clk 0:00:09.6]} 51... Rb4 {[%clk 0:00:12.5]} 52. Kxd6 {[%clk 0:00:06.6]}
52... Rxb3 {[%clk 0:00:12.3]} 53. Kxe5 {[%clk 0:00:02.8]} 53... Rb5 {[%clk
0:00:12.1]} 54. Ke6 {[%clk 0:00:03.3]} 54... Rxa5 {[%clk 0:00:12.1]} 55. d6
{[%clk 0:00:03.9]} 55... Ra1 {[%clk 0:00:12.3]} 56. Rh8+ {[%clk 0:00:04.2]}
56... Kb7 {[%clk 0:00:12.8]} 57. d7 {[%clk 0:00:04.7]} 57... Re1+ {[%clk
0:00:12.7]} 58. Kf5 {[%clk 0:00:05.1]} 58... Rf1+ {[%clk 0:00:12.9]} 59. Kg4
{[%clk 0:00:05.4]} 1-0

[Event "*** Titled Tuesday Blitz"]
[Site "Chess.com"]
[Date "2021.03.09"]
[Round "3"]
[White "rasmussvane"]
[Black "Szparu"]
[Result "1/2-1/2"]
[WhiteElo "2948"]
[BlackElo "2654"]
[TimeControl "180+1"]
[EndTime "10:30:12 PST"]
[Termination "Game drawn - insufficient material"]

1. Nf3 {[%clk 0:03:00.9]} 1... c5 {[%clk 0:02:55.8]} 2. c4 {[%clk 0:03:01]} 2...
Nf6 {[%clk 0:02:54.3]} 3. Nc3 {[%clk 0:03:01.3]} 3... g6 {[%clk 0:02:35.9]} 4.
d4 {[%clk 0:02:55.5]} 4... cxd4 {[%clk 0:02:33.2]} 5. Nxd4 {[%clk 0:02:56.4]}
5... Bg7 {[%clk 0:02:33.3]} 6. e4 {[%clk 0:02:56.4]} 6... O-O {[%clk 0:02:33.8]}
7. Be3 {[%clk 0:02:55.9]} 7... Nc6 {[%clk 0:02:33.2]} 8. Be2 {[%clk 0:02:56.2]}
8... d6 {[%clk 0:02:32.7]} 9. O-O {[%clk 0:02:56.5]} 9... Bd7 {[%clk 0:02:32.1]}
10. Nc2 {[%clk 0:02:56.9]} 10... Rc8 {[%clk 0:02:04.2]} 11. Rc1 {[%clk
0:02:50.7]} 11... a6 {[%clk 0:01:55.4]} 12. f4 {[%clk 0:02:49.2]} 12... Be8
{[%clk 0:01:43]} 13. Qd2 {[%clk 0:02:43.5]} 13... Nd7 {[%clk 0:01:42.1]} 14. Bf3
{[%clk 0:02:27.4]} 14... b5 {[%clk 0:01:33.1]} 15. cxb5 {[%clk 0:02:05.1]} 15...
axb5 {[%clk 0:01:34]} 16. Nd4 {[%clk 0:01:37.3]} 16... Nb6 {[%clk 0:01:06.9]}
17. b3 {[%clk 0:01:33.5]} 17... Nxd4 {[%clk 0:00:54.8]} 18. Bxd4 {[%clk
0:01:34.4]} 18... e5 {[%clk 0:00:44.7]} 19. Be3 {[%clk 0:01:11.4]} 19... Bc6
{[%clk 0:00:42]} 20. Rfd1 {[%clk 0:01:06.1]} 20... exf4 {[%clk 0:00:37.7]} 21.
Bxf4 {[%clk 0:01:07]} 21... Be5 {[%clk 0:00:36.9]} 22. Bg4 {[%clk 0:00:56.9]}
22... Qh4 {[%clk 0:00:28]} 23. Bxe5 {[%clk 0:00:45.4]} 23... Qxg4 {[%clk
0:00:27.9]} 24. Qxd6 {[%clk 0:00:30.2]} 24... Nd7 {[%clk 0:00:26.3]} 25. h3
{[%clk 0:00:25.9]} 25... Qg5 {[%clk 0:00:22]} 26. Bd4 {[%clk 0:00:15.5]} 26...
Rfe8 {[%clk 0:00:20.6]} 27. Nd5 {[%clk 0:00:05.5]} 27... Re6 {[%clk 0:00:20.8]}
28. Qf4 {[%clk 0:00:04.7]} 28... Qxf4 {[%clk 0:00:20.8]} 29. Nxf4 {[%clk
0:00:05.6]} 29... Rxe4 {[%clk 0:00:21.7]} 30. Nd5 {[%clk 0:00:05.7]} 30... Ree8
{[%clk 0:00:14.6]} 31. Nb4 {[%clk 0:00:04.9]} 31... Be4 {[%clk 0:00:12.6]} 32.
Bf2 {[%clk 0:00:05]} 32... Nf6 {[%clk 0:00:11.7]} 33. a4 {[%clk 0:00:05.3]}
33... bxa4 {[%clk 0:00:11.8]} 34. bxa4 {[%clk 0:00:06.2]} 34... Rb8 {[%clk
0:00:12.2]} 35. Nc6 {[%clk 0:00:05.6]} 35... Ra8 {[%clk 0:00:12.8]} 36. Nd4
{[%clk 0:00:04.2]} 36... Rxa4 {[%clk 0:00:12.6]} 37. Re1 {[%clk 0:00:04.9]}
37... Raa8 {[%clk 0:00:08.3]} 38. Re2 {[%clk 0:00:05.1]} 38... Bd5 {[%clk
0:00:08.7]} 39. Rce1 {[%clk 0:00:05.3]} 39... Rxe2 {[%clk 0:00:08.6]} 40. Rxe2
{[%clk 0:00:06.2]} 40... Re8 {[%clk 0:00:09.2]} 41. Rxe8+ {[%clk 0:00:06.1]}
41... Nxe8 {[%clk 0:00:09.4]} 42. g4 {[%clk 0:00:06.7]} 42... Nf6 {[%clk
0:00:09.4]} 43. Be3 {[%clk 0:00:07.2]} 43... h5 {[%clk 0:00:09.7]} 44. gxh5
{[%clk 0:00:06.9]} 44... Nxh5 {[%clk 0:00:09.9]} 45. Kh2 {[%clk 0:00:07.6]}
45... Be4 {[%clk 0:00:10]} 46. Ne2 {[%clk 0:00:07.8]} 46... Bf3 {[%clk
0:00:10.1]} 47. Ng3 {[%clk 0:00:07.9]} 47... Ng7 {[%clk 0:00:08.6]} 48. Bd4
{[%clk 0:00:08.2]} 48... Ne6 {[%clk 0:00:09]} 49. Bf6 {[%clk 0:00:08.7]} 49...
Bd5 {[%clk 0:00:08.7]} 50. Nf1 {[%clk 0:00:08.5]} 50... Nc5 {[%clk 0:00:08.2]}
51. Ne3 {[%clk 0:00:08.5]} 51... Be6 {[%clk 0:00:08.7]} 52. Bd4 {[%clk
0:00:07.9]} 52... Ne4 {[%clk 0:00:08.1]} 53. Kg2 {[%clk 0:00:07.7]} 53... f6
{[%clk 0:00:08.1]} 54. h4 {[%clk 0:00:07.2]} 54... Kf7 {[%clk 0:00:08]} 55. Kf3
{[%clk 0:00:07.8]} 55... Nd6 {[%clk 0:00:06]} 56. Kf4 {[%clk 0:00:07.2]} 56...
Nf5 {[%clk 0:00:05.4]} 57. Nxf5 {[%clk 0:00:07.4]} 57... Bxf5 {[%clk 0:00:05.8]}
58. Bc3 {[%clk 0:00:06.9]} 58... Be6 {[%clk 0:00:05.8]} 59. Bb2 {[%clk
0:00:07.3]} 59... g5+ {[%clk 0:00:06.3]} 60. hxg5 {[%clk 0:00:07.4]} 60... fxg5+
{[%clk 0:00:07.2]} 61. Kxg5 {[%clk 0:00:08.3]} 1/2-1/2

[Event "*** Titled Tuesday Blitz"]
[Site "Chess.com"]
[Date "2021.03.09"]
[Round "3"]
[White "crazy_but_lazy"]
[Black "superjem123"]
[Result "0-1"]
[WhiteElo "2509"]
[BlackElo "2761"]
[TimeControl "180+1"]
[EndTime "10:30:14 PST"]
[Termination "superjem123 won by resignation"]

1. e4 {[%clk 0:03:00.9]} 1... e5 {[%clk 0:02:57.5]} 2. Nf3 {[%clk 0:02:59.8]}
2... Nc6 {[%clk 0:02:56.2]} 3. Bb5 {[%clk 0:02:55.5]} 3... Nf6 {[%clk 0:02:55]}
4. d3 {[%clk 0:02:54.8]} 4... Bc5 {[%clk 0:02:54.6]} 5. h3 {[%clk 0:02:51.7]}
5... Nd4 {[%clk 0:02:49.5]} 6. Nxd4 {[%clk 0:02:49.7]} 6... Bxd4 {[%clk
0:02:50.4]} 7. c3 {[%clk 0:02:47.5]} 7... Bb6 {[%clk 0:02:50.3]} 8. O-O {[%clk
0:02:46.1]} 8... c6 {[%clk 0:02:47.5]} 9. Ba4 {[%clk 0:02:44.7]} 9... O-O {[%clk
0:02:42.8]} 10. Bg5 {[%clk 0:02:34.7]} 10... h6 {[%clk 0:02:42.6]} 11. Bh4
{[%clk 0:02:34.8]} 11... g5 {[%clk 0:02:42.7]} 12. Bg3 {[%clk 0:02:34.6]} 12...
d6 {[%clk 0:02:42.5]} 13. Nd2 {[%clk 0:02:29.8]} 13... h5 {[%clk 0:02:39]} 14.
Nc4 {[%clk 0:02:23.9]} 14... h4 {[%clk 0:02:29.3]} 15. Bh2 {[%clk 0:02:21.1]}
15... g4 {[%clk 0:02:18.1]} 16. hxg4 {[%clk 0:02:11]} 16... Nxg4 {[%clk
0:02:18.6]} 17. d4 {[%clk 0:01:58.7]} 17... Bc7 {[%clk 0:02:05.7]} 18. Ne3
{[%clk 0:01:42.4]} 18... Nxh2 {[%clk 0:02:02]} 19. Kxh2 {[%clk 0:01:42.4]} 19...
Qg5 {[%clk 0:02:01.7]} 20. d5 {[%clk 0:01:31.5]} 20... c5 {[%clk 0:01:53.7]} 21.
Qf3 {[%clk 0:01:25.8]} 21... Kg7 {[%clk 0:01:36.9]} 22. Nf5+ {[%clk 0:01:10.8]}
22... Bxf5 {[%clk 0:01:36]} 23. Qxf5 {[%clk 0:01:11.7]} 23... Qxf5 {[%clk
0:01:35.5]} 24. exf5 {[%clk 0:01:12.6]} 24... Kf6 {[%clk 0:01:34.9]} 25. Bc2
{[%clk 0:01:09.1]} 25... Rg8 {[%clk 0:01:35.1]} 26. Rae1 {[%clk 0:01:00.4]}
26... Rg4 {[%clk 0:01:33.2]} 27. Re4 {[%clk 0:00:36.4]} 27... Rag8 {[%clk
0:01:30.8]} 28. Rxg4 {[%clk 0:00:34.4]} 28... Rxg4 {[%clk 0:01:31.7]} 29. f3
{[%clk 0:00:34.3]} 29... Rg3 {[%clk 0:01:27.4]} 30. Be4 {[%clk 0:00:33.1]} 30...
c4 {[%clk 0:01:20]} 31. b3 {[%clk 0:00:30.2]} 31... Bb6 {[%clk 0:01:10.4]} 32.
bxc4 {[%clk 0:00:25.9]} 32... Be3 {[%clk 0:01:07.1]} 33. a4 {[%clk 0:00:24]}
33... a5 {[%clk 0:01:05.4]} 34. Rb1 {[%clk 0:00:22.8]} 34... b6 {[%clk
0:01:05.1]} 35. Rd1 {[%clk 0:00:20.6]} 35... Bf4 {[%clk 0:01:03.3]} 36. Kh1
{[%clk 0:00:20.2]} 36... h3 {[%clk 0:01:00.6]} 37. gxh3 {[%clk 0:00:21.1]} 37...
Rxh3+ {[%clk 0:01:01.5]} 38. Kg1 {[%clk 0:00:21.6]} 38... Rh2 {[%clk 0:00:59.8]}
39. Rb1 {[%clk 0:00:22.1]} 39... Ra2 {[%clk 0:00:59.2]} 40. Kf1 {[%clk
0:00:20.4]} 40... Be3 {[%clk 0:00:58.6]} 41. Re1 {[%clk 0:00:20]} 41... Bc5
{[%clk 0:00:37.5]} 42. Re2 {[%clk 0:00:18.3]} 42... Ra1+ {[%clk 0:00:35.3]} 43.
Kg2 {[%clk 0:00:18]} 43... Rxa4 {[%clk 0:00:35.5]} 44. Kg3 {[%clk 0:00:18]}
44... Ra1 {[%clk 0:00:34.2]} 45. Rg2 {[%clk 0:00:04.5]} 45... a4 {[%clk
0:00:33]} 46. Kh2 {[%clk 0:00:02.7]} 46... a3 {[%clk 0:00:32.6]} 47. Rg8 {[%clk
0:00:03]} 47... Rc1 {[%clk 0:00:12.1]} 48. Ra8 {[%clk 0:00:03.2]} 48... Rxc3
{[%clk 0:00:10.4]} 49. Kg3 {[%clk 0:00:03.7]} 49... Rxc4 {[%clk 0:00:10.8]} 50.
Bd3 {[%clk 0:00:03.8]} 50... Rd4 {[%clk 0:00:06.8]} 51. Be4 {[%clk 0:00:04.1]}
51... b5 {[%clk 0:00:06.4]} 52. Kf2 {[%clk 0:00:04.5]} 52... Ra4+ {[%clk
0:00:04.6]} 0-1

[Event "*** Titled Tuesday Blitz"]
[Site "Chess.com"]
[Date "2021.03.09"]
[Round "3"]
[White "ajdemipopushi"]
[Black "tgpgoat"]
[Result "1-0"]
[WhiteElo "2349"]
[BlackElo "2160"]
[TimeControl "180+1"]
[EndTime "10:30:14 PST"]
[Termination "ajdemipopushi won by checkmate"]

1. Nf3 {[%clk 0:03:00.9]} 1... Nf6 {[%clk 0:02:59.7]} 2. g3 {[%clk 0:03:00.2]}
2... g6 {[%clk 0:02:34.4]} 3. c4 {[%clk 0:02:59.7]} 3... Bg7 {[%clk 0:02:35.3]}
4. Bg2 {[%clk 0:02:59.3]} 4... O-O {[%clk 0:02:36.2]} 5. O-O {[%clk 0:02:59.2]}
5... d5 {[%clk 0:02:36.8]} 6. cxd5 {[%clk 0:02:59]} 6... Nxd5 {[%clk 0:02:37.7]}
7. d4 {[%clk 0:02:58.9]} 7... b6 {[%clk 0:02:35.8]} 8. e4 {[%clk 0:02:53.4]}
8... Nf6 {[%clk 0:02:32.9]} 9. Nc3 {[%clk 0:02:53.1]} 9... Bb7 {[%clk
0:02:32.4]} 10. Re1 {[%clk 0:02:49.9]} 10... Nbd7 {[%clk 0:02:32.7]} 11. h3
{[%clk 0:02:32.5]} 11... Re8 {[%clk 0:02:30.6]} 12. Bf4 {[%clk 0:02:28.9]} 12...
c5 {[%clk 0:02:28.4]} 13. d5 {[%clk 0:02:26.9]} 13... Nh5 {[%clk 0:02:25.8]} 14.
Be3 {[%clk 0:02:15.2]} 14... e5 {[%clk 0:02:08.1]} 15. Qd2 {[%clk 0:02:05.5]}
15... a6 {[%clk 0:02:03]} 16. a4 {[%clk 0:02:04.1]} 16... Rc8 {[%clk 0:01:55.9]}
17. Rad1 {[%clk 0:01:59.2]} 17... c4 {[%clk 0:01:55.2]} 18. d6 {[%clk
0:00:48.1]} 18... Nhf6 {[%clk 0:01:52.7]} 19. Nh2 {[%clk 0:00:47.4]} 19... Bc6
{[%clk 0:01:48.8]} 20. Ng4 {[%clk 0:00:42.2]} 20... Nxg4 {[%clk 0:01:48]} 21.
hxg4 {[%clk 0:00:42.1]} 21... b5 {[%clk 0:01:44.5]} 22. axb5 {[%clk 0:00:41.2]}
22... axb5 {[%clk 0:01:45.4]} 23. f4 {[%clk 0:00:40.7]} 23... b4 {[%clk
0:01:38.6]} 24. Nd5 {[%clk 0:00:39.5]} 24... Bxd5 {[%clk 0:01:35.6]} 25. Qxd5
{[%clk 0:00:38.7]} 25... exf4 {[%clk 0:01:35.1]} 26. gxf4 {[%clk 0:00:37.7]}
26... Bxb2 {[%clk 0:01:34.6]} 27. e5 {[%clk 0:00:36.8]} 27... c3 {[%clk
0:01:33.1]} 28. Bd4 {[%clk 0:00:34.9]} 28... Nb6 {[%clk 0:01:30.8]} 29. Qb3
{[%clk 0:00:32.4]} 29... Qd7 {[%clk 0:01:19.2]} 30. Bxb6 {[%clk 0:00:30.2]}
30... Qxg4 {[%clk 0:01:15.4]} 31. Be3 {[%clk 0:00:28.6]} 31... Rcd8 {[%clk
0:01:01.7]} 32. Qxb4 {[%clk 0:00:26]} 32... c2 {[%clk 0:00:58.5]} 33. Rc1 {[%clk
0:00:24.5]} 33... Bxc1 {[%clk 0:00:58.4]} 34. Rxc1 {[%clk 0:00:23]} 34... h5
{[%clk 0:00:56.5]} 35. Qd2 {[%clk 0:00:17.3]} 35... h4 {[%clk 0:00:54.9]} 36.
Kf1 {[%clk 0:00:09.4]} 36... h3 {[%clk 0:00:49]} 37. Bh1 {[%clk 0:00:08.4]}
37... g5 {[%clk 0:00:44.6]} 38. Rxc2 {[%clk 0:00:05.1]} 38... f6 {[%clk
0:00:38.4]} 39. Qe2 {[%clk 0:00:03.9]} 39... Qxe2+ {[%clk 0:00:35.3]} 40. Rxe2
{[%clk 0:00:02.9]} 40... fxe5 {[%clk 0:00:35.6]} 41. fxg5 {[%clk 0:00:02.5]}
41... Rxd6 {[%clk 0:00:34.4]} 42. Be4 {[%clk 0:00:02.3]} 42... Rf8+ {[%clk
0:00:30.5]} 43. Kg1 {[%clk 0:00:02.7]} 43... Kg7 {[%clk 0:00:26.2]} 44. Kh2
{[%clk 0:00:02.7]} 44... Rh8 {[%clk 0:00:26]} 45. Bf3 {[%clk 0:00:01.7]} 45...
Kg6 {[%clk 0:00:21]} 46. Be4+ {[%clk 0:00:01.7]} 46... Kg7 {[%clk 0:00:21]} 47.
Bf2 {[%clk 0:00:02]} 47... Ra6 {[%clk 0:00:17.9]} 48. Bg3 {[%clk 0:00:02]} 48...
Re6 {[%clk 0:00:16.9]} 49. Bf5 {[%clk 0:00:01.9]} 49... Ree8 {[%clk 0:00:16.8]}
50. Bxe5+ {[%clk 0:00:02.2]} 50... Kf7 {[%clk 0:00:17.3]} 51. g6+ {[%clk
0:00:02.2]} 51... Ke7 {[%clk 0:00:17.8]} 52. Bxh8+ {[%clk 0:00:01.9]} 52... Kd8
{[%clk 0:00:15.9]} 53. Rxe8+ {[%clk 0:00:02.8]} 53... Kxe8 {[%clk 0:00:16.8]}
54. g7 {[%clk 0:00:03.5]} 54... Kf7 {[%clk 0:00:17.3]} 55. Bh7 {[%clk
0:00:04.2]} 55... Ke6 {[%clk 0:00:16.8]} 56. g8=Q+ {[%clk 0:00:05.1]} 56... Kd6
{[%clk 0:00:16.5]} 57. Qg4 {[%clk 0:00:06]} 57... Kc5 {[%clk 0:00:17.4]} 58.
Kxh3 {[%clk 0:00:05.8]} 58... Kd6 {[%clk 0:00:18.3]} 59. Qg6+ {[%clk 0:00:04.9]}
59... Kd5 {[%clk 0:00:18.3]} 60. Qe4+ {[%clk 0:00:05]} 60... Kc5 {[%clk
0:00:18.5]} 61. Qd3 {[%clk 0:00:04.7]} 61... Kc6 {[%clk 0:00:19.4]} 62. Kg4
{[%clk 0:00:04.8]} 62... Kc5 {[%clk 0:00:19.7]} 63. Kf5 {[%clk 0:00:05.2]} 63...
Kc6 {[%clk 0:00:20.1]} 64. Ke5 {[%clk 0:00:05.5]} 64... Kc5 {[%clk 0:00:21]} 65.
Qc3+ {[%clk 0:00:05.7]} 65... Kb5 {[%clk 0:00:21.9]} 66. Kd5 {[%clk 0:00:05.1]}
66... Kb6 {[%clk 0:00:21.9]} 67. Qc6+ {[%clk 0:00:05.4]} 67... Ka5 {[%clk
0:00:21.9]} 68. Qb7 {[%clk 0:00:05.8]} 68... Ka4 {[%clk 0:00:21.9]} 69. Kc4
{[%clk 0:00:06.7]} 69... Ka3 {[%clk 0:00:22.8]} 70. Qb3# {[%clk 0:00:07]} 1-0